bitfinex/quotes_ETHUSD_20240710
["timestamp","ask_amount","ask_price","bid_price","bid_amount"]
[1720597865450,0.33763248,3102.1,3101.6,1.15468861]
[1720597867390,1.9343,3101.9,3101.4,8.27690806]
[1720597867687,1.9343,3101.9,3101.4,5.98170806]
[1720597868309,1.93436,3101.8,3101.4,5.98170806]
[1720597868732,1.93436,3101.8,3101.0,2.3266]
[1720597869002,1.93436,3101.8,3101.1,0.83083081]
[1720597869308,1.93442,3101.7,3101.1,0.83083081]
[1720597869882,1.1171255,3101.6,3101.1,0.83083081]
[1720597870086,1.1171255,3101.5,3101.1,0.83083081]
[1720597870419,1.1171255,3101.4,3101.2,0.31574308]
[1720597870612,1.1171255,3101.4,3101.0,2.3266]
[1720597870807,1.11714852,3101.3,3101.0,2.3266]
[1720597871016,1.93442,3101.7,3101.0,2.3266]
[1720597871185,1.11716013,3101.6,3101.0,2.3266]
[1720597871385,3.05170013,3101.5,3101.0,3.15743081]
[1720597871598,1.11716013,3101.4,3101.0,3.15743081]
[1720597872186,1.11716013,3101.4,3101.0,0.83083081]
[1720597872590,1.11716013,3101.6,3101.0,0.83083081]
[1720597872819,1.11716013,3101.5,3101.1,0.68125389]
[1720597873021,1.93442,3101.7,3101.1,0.68125389]
[1720597873022,1.11716013,3101.4,3101.1,0.68125389]
[1720597873232,1.93442,3101.7,3101.1,0.68125389]
[1720597873436,1.11709462,3101.6,3101.1,0.68125389]
[1720597873725,1.11709462,3101.5,3101.2,2.4381]
[1720597873931,3.0,3101.8,3101.3,0.31193539]
[1720597874132,1.11706831,3101.4,3101.3,0.31193539]
[1720597874293,1.11706831,3101.4,3101.2,2.4381]
[1720597874494,1.11706831,3101.3,3101.2,2.4381]
[1720597874721,1.11706831,3101.3,3100.3,1.93528]
[1720597874722,1.93451,3101.6,3100.8,2.3352]
[1720597874898,1.11706831,3101.5,3100.8,2.3352]
[1720597877603,1.11715211,3101.4,3100.8,2.3352]
[1720597877797,3.0,3101.5,3100.8,2.3352]
[1720597877798,1.1171398,3101.3,3100.8,2.3352]
[1720597878038,1.1171398,3101.2,3100.9,0.23352]
[1720597878241,1.1171398,3101.4,3100.9,0.23352]
[1720597878468,1.1171398,3101.4,3101.0,0.256872]
[1720597878762,1.11714526,3101.3,3101.0,0.256872]
[1720597878973,1.11714526,3101.2,3101.0,0.256872]
[1720597879151,1.11712828,3101.1,3101.0,0.256872]
[1720597880877,1.11710631,3101.1,3101.0,0.256872]
[1720597882246,1.62330699,3101.1,3101.0,0.256872]
[1720597884044,0.50620068,3101.1,3101.0,0.256872]
[1720597885355,1.62331364,3101.1,3101.0,0.256872]
[1720597886887,1.62334836,3101.1,3101.0,0.256872]
[1720597887449,0.50620068,3101.1,3101.0,0.256872]
[1720597887687,1.6233241,3101.1,3101.0,0.256872]
[1720597887845,0.50620068,3101.1,3101.0,0.256872]
[1720597888279,1.62332057,3101.1,3101.0,0.256872]
[1720597888789,1.62331949,3101.1,3101.0,0.256872]
[1720597889506,0.50620068,3101.1,3101.0,0.256872]
[1720597889847,1.6232701,3101.1,3101.0,0.256872]
[1720597890254,0.50620068,3101.1,3101.0,0.256872]
[1720597890461,1.62326897,3101.1,3101.0,0.256872]
[1720597890965,1.62327996,3101.1,3101.0,0.256872]
[1720597892560,0.50620068,3101.1,3101.0,0.256872]
[1720597893776,1.62327825,3101.1,3101.0,0.256872]
[1720597894089,0.50620068,3101.1,3101.0,0.256872]
[1720597896403,1.62324707,3101.1,3101.0,0.256872]
[1720597896569,0.50620068,3101.1,3101.0,0.256872]
[1720597897125,0.50620068,3101.1,3101.0,2.69215261]
[1720597897280,0.50620068,3101.1,3101.0,4.36449757]
[1720597897482,0.33764739,3102.2,3101.1,2.3708]
[1720597897655,0.50609908,3101.8,3101.3,2.3708]
[1720597897860,0.50609908,3101.8,3101.4,0.0644695]
[1720597898054,0.50609908,3101.8,3101.5,0.79352695]
[1720597898295,0.50609908,3101.8,3101.7,2.3678]
[1720597899982,0.50609908,3101.8,3101.7,2.9178]
[1720597902606,0.33763587,3102.7,3101.7,2.9178]
[1720597902817,0.33763587,3102.7,3101.9,2.2515]
[1720597903119,0.33763587,3102.7,3102.1,2.255]
[1720597903120,0.50598066,3102.4,3102.1,2.255]
[1720597903265,0.50598066,3102.4,3102.2,0.29639532]
[1720597903488,0.50598066,3102.4,3101.9,1.93429]
[1720597903489,0.50598066,3102.4,3102.3,2.31944811]
[1720597904424,0.50598066,3102.4,3102.3,2.86944811]
[1720597904585,0.50598066,3102.4,3102.3,2.805]
[1720597904786,0.50598066,3102.4,3102.3,3.15639166]
[1720597905287,0.50598066,3102.4,3102.3,2.54194434]
[1720597909615,0.50598066,3102.4,3102.3,0.28694434]
[1720597909848,0.50598066,3102.4,3101.9,2.4267]
[1720597910018,0.50598066,3102.4,3101.9,2.49115306]
[1720597912822,0.50598066,3102.4,3102.0,0.55]
[1720597913027,0.50598066,3102.4,3102.1,0.06445093]
[1720597913906,0.50598066,3102.4,3102.2,2.4923]
[1720597914112,0.50598066,3102.4,3102.3,0.87011769]
[1720597914951,0.3376134,3103.2,3102.3,0.87011769]
[1720597915257,0.50590367,3102.8,3102.4,0.06444334]
[1720597915465,0.50590367,3102.8,3102.3,0.87012025]
[1720597915664,0.50590367,3102.8,3102.4,0.32979751]
[1720597916041,0.50590367,3102.8,3102.5,0.06444482]
[1720597916225,0.50590367,3102.8,3102.4,0.32979751]
[1720597921738,0.50590367,3102.8,3102.5,0.06444625]
[1720597922471,4.5229,3104.2,3102.5,0.06444625]
[1720597922472,2.2545,3104.0,3102.7,4.40549]
[1720597922632,1.11622925,3103.9,3102.9,2.2801]
[1720597922833,0.50582397,3103.8,3103.0,0.61442922]
[1720597923094,0.50582397,3103.8,3103.0,1.04293694]
[1720597923950,0.50582397,3103.8,3103.1,2.2728]
[1720597924177,0.50582397,3103.8,3103.2,0.94599767]
[1720597924376,0.50582397,3103.8,3103.3,0.06442395]
[1720597925974,0.50582397,3103.8,3103.2,0.33157369]
[1720597926188,0.50582397,3103.8,3102.8,2.4658]
[1720597926189,4.8711,3103.7,3102.8,2.4658]
[1720597926550,3.0,3103.6,3102.8,2.4658]
[1720597926862,3.0,3103.6,3102.9,0.24658]
[1720597928526,3.0,3103.6,3102.8,2.4658]
[1720597929179,3.0,3103.6,3102.9,0.06443591]
[1720597929630,3.0,3103.6,3102.8,2.53023591]
[1720597930184,3.82892397,3103.8,3102.8,2.53023591]
[1720597930519,3.82892397,3103.8,3102.9,0.25302359]
[1720597934759,3.98888159,3103.8,3102.9,0.25302359]
[1720597939659,0.3231,3103.6,3102.9,0.25302359]
[1720597940522,0.3231,3103.6,3103.0,3.07603376]
[1720597940743,0.3231,3103.6,3103.1,0.33290574]
[1720597941742,0.3231,3103.7,3103.1,0.33290574]
[1720597944263,0.3231,3103.7,3102.5,0.06443239]
[1720597944264,2.6329,3103.6,3102.6,1.68250928]
[1720597944442,2.59,3102.9,3102.1,0.06444691]
[1720597944639,2.59,3102.9,3101.9,3.25445287]
[1720597944640,0.3231,3102.8,3101.9,3.25445287]
[1720597944837,0.3231,3102.8,3102.0,0.32544529]
[1720597944838,3.3231,3102.8,3102.0,0.32544529]
[1720597945369,3.3231,3102.8,3101.8,0.06445394]
[1720597945370,1.43969648,3102.7,3101.8,0.06445394]
[1720597945537,2.59,3102.5,3101.6,0.06445598]
[1720597945742,0.3231,3102.3,3101.6,0.17475993]
[1720597945931,0.3231,3102.3,3101.4,0.0644618]
[1720597947330,0.3231,3102.3,3101.5,2.3012]
[1720597947967,2.59,3102.1,3101.5,2.3012]
[1720597948127,2.59,3102.1,3101.6,0.23656618]
[1720597948128,3.0,3102.0,3101.6,0.23656618]
[1720597949026,3.0,3102.0,3101.7,0.06446571]
[1720597949657,3.3231,3102.4,3101.7,0.06446571]
[1720597949869,3.3231,3102.4,3101.8,0.06445901]
[1720597950236,3.3231,3102.4,3101.9,0.55]
[1720597951374,3.3231,3102.4,3102.0,0.06445536]
[1720597951671,3.0,3102.4,3102.0,0.06445536]
[1720597951883,3.48588793,3102.8,3102.1,2.3423]
[1720597952038,3.48588793,3102.8,3102.2,0.85512412]
[1720597954972,3.48588793,3102.8,3102.2,0.24067554]
[1720597955349,2.59,3102.5,3102.2,0.24067554]
[1720597955775,3.0,3102.4,3102.2,0.24067554]
[1720597955979,3.0,3102.4,3102.3,0.25829755]
[1720597963691,3.0,3102.4,3102.1,2.3423]
[1720597966498,3.16194949,3102.4,3102.1,2.3423]
[1720597973534,3.16194949,3102.4,3102.2,0.06445495]
[1720597973743,3.16194949,3102.4,3102.3,0.2406755]
[1720597973940,0.16194949,3102.4,3102.3,0.30512964]
[1720597974144,3.3231,3102.8,3102.3,0.30512964]
[1720597974302,3.3231,3102.8,3102.3,0.2406755]
[1720597974702,3.48188857,3102.8,3102.3,0.2406755]
[1720597977349,2.59,3102.5,3101.9,0.064451]
[1720597977508,3.0,3102.4,3101.8,0.06445573]
[1720597977701,3.0,3102.4,3101.9,0.88894982]
[1720597979318,3.0,3102.4,3102.0,1.12187684]
[1720597979519,3.0,3102.4,3101.9,0.88894982]
[1720597980028,3.0,3102.4,3102.0,1.12188264]
[1720597980347,3.0,3102.4,3102.1,0.20108325]
[1720597980556,3.0,3102.4,3101.9,0.88894982]
[1720597980714,3.0,3102.4,3102.0,1.12188976]
[1720597980919,3.0,3102.4,3101.9,0.88894982]
[1720597981229,3.0,3102.4,3102.0,1.12189186]
[1720597981428,3.0,3102.4,3101.9,0.88894982]
[1720597981628,3.0,3102.4,3102.0,1.12187276]
[1720597981825,3.0,3102.4,3102.1,0.20108226]
[1720597982030,3.0,3102.4,3101.9,0.33894982]
[1720597982206,3.0,3102.4,3102.0,1.12189869]
[1720597982407,3.0,3102.4,3101.9,0.33894982]
[1720597982601,3.0,3102.4,3102.0,1.12189535]
[1720597982802,3.0,3102.4,3101.9,0.33894982]
[1720597983006,3.0,3102.4,3102.0,1.12189111]
[1720597983339,3.0,3102.4,3102.1,1.12186412]
[1720597983582,0.50590333,3102.6,3101.9,2.51504929]
[1720597983842,0.50590333,3102.6,3102.0,3.06259803]
[1720597984007,0.50590333,3102.6,3102.1,2.8046474]
[1720597984208,0.50590333,3102.6,3102.0,0.25795063]
[1720597984747,0.50590333,3102.6,3101.9,0.40340389]
[1720597984748,1.08,3102.1,3101.9,0.40340389]
[1720597984949,1.08,3102.1,3102.0,1.12189591]
[1720597985117,1.08,3102.1,3102.0,2.8047616]
[1720597986427,1.08,3102.1,3101.9,1.01504929]
[1720597986639,1.08,3102.1,3102.0,2.80476212]
[1720597986817,1.08,3102.1,3102.0,0.38198114]
[1720597987017,1.08,3102.1,3102.0,2.80476537]
[1720597988621,1.4031,3102.1,3101.9,0.33894982]
[1720597988823,1.4031,3102.1,3101.7,0.93632266]
[1720597989025,1.08,3101.8,3101.7,0.93632266]
[1720597989219,1.08,3101.8,3101.7,2.61931664]
[1720597990026,1.08,3101.8,3101.7,1.94321929]
[1720597990229,1.08,3101.8,3101.7,5.20129986]
[1720597990450,1.08,3101.8,3101.7,2.620422]
[1720597990647,1.08,3101.8,3101.7,1.94321929]
[1720597990955,1.08,3101.8,3101.7,5.20132794]
[1720597991823,1.08,3101.8,3101.7,4.25164178]
[1720597992178,1.08,3102.0,3101.7,8.06744072]
[1720597992465,1.08,3102.0,3101.9,1.01593876]
[1720597992674,1.08,3102.0,3101.9,5.00735594]
[1720597993018,1.08,3102.0,3101.9,2.30842108]
[1720597993223,1.08,3102.0,3101.9,5.73134399]
[1720597994670,1.08,3102.0,3101.9,6.06999511]
[1720597996580,1.08,3102.0,3101.9,3.03253975]
[1720597996890,1.08,3102.0,3101.9,6.0707957]
[1720597997035,1.08,3102.0,3101.9,6.07079658]
[1720597997766,1.08,3102.0,3101.9,6.07079426]
[1720597998728,1.08,3102.0,3101.9,7.57079426]
[1720597998934,1.08,3102.2,3102.0,1.5]
[1720597999152,1.08,3102.2,3102.1,5.83417658]
[1720597999369,1.08,3102.2,3102.1,4.81757564]
[1720597999946,1.08,3102.2,3102.1,4.81748832]
[1720598000445,1.08,3102.2,3102.1,5.83404432]
[1720598000648,1.08,3102.2,3102.1,5.76958669]
[1720598001386,1.4031,3102.2,3102.1,3.18697972]
[1720598002246,1.4031,3102.2,3102.1,5.76948611]
[1720598002448,1.4031,3102.2,3102.1,5.76948763]
[1720598002662,1.08,3102.2,3102.1,5.76948763]
[1720598003144,1.08,3102.2,3102.1,4.151262]
[1720598003339,1.08,3102.2,3102.1,5.8339771]
[1720598003806,1.08,3102.2,3102.1,4.8174211]
[1720598003960,0.50590333,3102.6,3102.1,8.22288903]
[1720598004153,0.50590333,3102.6,3102.4,0.67766927]
[1720598004359,0.82900333,3102.6,3102.5,1.74716498]
[1720598004589,1.90900333,3102.6,3102.5,1.74716498]
[1720598004889,1.90900333,3102.6,3102.5,2.16186852]
[1720598006389,1.90900333,3102.6,3102.3,0.67766927]
[1720598006621,1.08,3102.4,3102.2,0.7672889]
[1720598006904,1.08,3102.4,3102.3,2.36031665]
[1720598007116,1.08,3102.4,3102.3,2.9247098]
[1720598007267,1.08,3102.4,3102.3,1.56846779]
[1720598007464,0.3231,3102.3,3102.0,0.6776135]
[1720598007660,1.08,3102.1,3102.0,0.6776135]
[1720598007895,1.08,3102.1,3102.0,0.84701632]
[1720598008672,1.08,3102.1,3102.0,1.96891124]
[1720598009714,1.08,3102.1,3102.0,1.29129774]
[1720598010066,1.08,3102.1,3102.0,1.29129266]
[1720598010685,2.9151,3102.5,3102.0,1.29129266]
[1720598010886,3.0,3102.4,3102.1,2.03029288]
[1720598011095,3.0,3102.4,3102.2,1.12188984]
[1720598011270,3.0,3102.4,3102.1,0.23077073]
[1720598011596,3.0,3102.4,3102.2,1.12189206]
[1720598011797,3.0,3102.4,3102.1,0.23077073]
[1720598011967,3.0,3102.4,3102.2,1.12189164]
[1720598012167,3.0,3102.4,3102.1,0.90840304]
[1720598012406,3.0,3102.4,3102.2,1.12188651]
[1720598012615,3.0,3102.4,3102.1,0.90840304]
[1720598012767,3.0,3102.4,3102.2,1.12188711]
[1720598012973,3.0,3102.4,3102.1,0.90840304]
[1720598013206,3.0,3102.4,3102.2,1.12188733]
[1720598013521,3.0,3102.4,3102.1,0.90840304]
[1720598013665,3.0,3102.4,3102.2,1.12188728]
[1720598013865,3.0,3102.4,3102.1,0.90840304]
[1720598014123,3.0,3102.4,3102.2,1.12188728]
[1720598014300,3.0,3102.4,3102.3,1.12188711]
[1720598014919,3.0,3102.4,3102.3,1.12188687]
[1720598015288,3.0,3102.4,3102.1,0.67763231]
[1720598015496,3.0,3102.4,3102.2,1.1218897]
[1720598015665,3.0,3102.4,3102.0,0.84703513]
[1720598015870,3.0,3102.4,3102.1,1.1218897]
[1720598016097,3.0,3102.4,3102.2,1.1218897]
[1720598016406,3.0,3102.4,3102.1,0.67763231]
[1720598016615,3.0,3102.4,3102.2,1.12188891]
[1720598016770,3.0,3102.4,3102.1,0.86397729]
[1720598016974,3.0,3102.4,3102.2,1.1218883]
[1720598017183,3.0,3102.4,3102.3,1.12187558]
[1720598020214,3.0,3102.4,3102.1,0.18634498]
[1720598020376,3.0,3102.4,3102.2,2.80469104]
[1720598020715,3.0,3102.4,3102.3,1.12187373]
[1720598022080,3.0,3102.4,3102.3,2.8046564]
[1720598023434,3.0,3102.4,3102.3,3.25453525]
[1720598023752,0.50590333,3102.6,3102.3,3.2544656]
[1720598024036,0.50590333,3102.6,3102.4,2.80458675]
[1720598024183,0.50590333,3102.6,3102.5,1.1218347]
[1720598024986,0.66908493,3102.6,3102.5,1.1218347]
[1720598025398,0.66908493,3102.6,3102.5,2.86894556]
[1720598025712,0.66908493,3102.6,3102.5,2.80449245]
[1720598026978,0.66908493,3102.6,3102.5,2.80441326]
[1720598027221,0.66908493,3102.6,3102.5,3.15261987]
[1720598027502,0.66908493,3102.6,3102.5,3.15260357]
[1720598028095,0.66908493,3102.6,3102.5,0.34820661]
[1720598028307,0.66908493,3102.6,3102.5,1.12175908]
[1720598028860,0.66908493,3102.6,3102.5,2.8043977]
[1720598029666,0.50590333,3102.6,3102.5,2.8043977]
[1720598029867,2.4472,3103.3,3102.5,2.8043977]
[1720598029868,0.3231,3103.6,3102.8,1.5]
[1720598030153,2.302,3103.7,3103.0,2.3829]
[1720598030332,2.592,3103.9,3103.1,0.06443473]
[1720598030649,2.592,3103.9,3103.1,0.36416822]
[1720598030847,2.9151,3103.9,3103.1,1.86416822]
[1720598031846,3.0,3103.8,3103.1,1.86416822]
[1720598032010,3.0,3103.8,3103.2,0.42470682]
[1720598032764,1.4021,3103.3,3103.2,0.42470682]
[1720598032968,1.4021,3103.3,3102.9,0.55]
[1720598032969,1.4021,3103.3,3102.7,3.7604]
[1720598033150,1.079,3102.8,3102.7,3.7604]
[1720598033468,1.079,3102.8,3102.7,4.3104]
[1720598034769,1.079,3102.8,3102.7,2.05]
[1720598035063,1.079,3102.8,3102.7,2.255]
[1720598036366,1.079,3102.8,3102.7,0.205]
[1720598036566,1.079,3102.8,3102.3,2.4969]
[1720598036862,1.079,3102.5,3102.3,2.4969]
[1720598038163,1.079,3102.7,3102.3,2.4969]
[1720598038352,1.079,3102.7,3102.4,0.50131818]
[1720598040975,1.079,3102.7,3102.5,2.80427381]
[1720598041283,1.079,3102.7,3102.4,0.50131818]
[1720598041468,1.079,3102.7,3102.5,2.80427271]
[1720598041677,1.079,3102.7,3102.4,0.50131818]
[1720598041843,1.079,3102.7,3102.5,1.48918409]
[1720598042052,1.079,3102.7,3102.5,0.36746647]
[1720598043737,1.079,3102.7,3102.4,0.50131818]
[1720598043935,1.079,3102.5,3102.2,2.17640919]
[1720598044176,3.0,3102.8,3102.3,2.80438536]
[1720598044329,1.079,3102.4,3102.2,1.5]
[1720598044667,1.079,3102.4,3102.3,3.02205572]
[1720598045464,1.079,3102.4,3102.3,1.33940684]
[1720598045967,1.079,3102.4,3102.3,3.02207939]
[1720598046869,1.079,3102.6,3102.3,3.02206807]
[1720598047070,1.079,3102.6,3102.4,1.4239788]
[1720598047370,1.079,3102.6,3102.4,0.30220794]
[1720598047591,1.079,3102.6,3102.2,0.67640919]
[1720598047748,1.079,3102.6,3102.3,2.80431151]
[1720598047950,1.079,3102.6,3102.4,2.80431151]
[1720598048147,1.079,3102.6,3102.3,0.67640919]
[1720598048346,1.079,3102.6,3102.4,2.80428856]
[1720598048589,1.079,3102.6,3102.5,0.34806978]
[1720598048785,1.079,3102.6,3102.3,0.67640919]
[1720598049086,1.079,3102.6,3102.4,2.80430058]
[1720598049270,1.079,3102.6,3102.5,1.12170749]
[1720598049583,1.079,3102.6,3102.5,1.30151746]
[1720598049798,1.079,3102.8,3102.5,1.30151746]
[1720598049967,1.079,3102.8,3102.5,0.17981167]
[1720598050170,1.079,3102.8,3102.3,0.74086188]
[1720598050351,1.079,3102.6,3102.4,2.80429851]
[1720598050553,1.079,3102.6,3102.3,0.67640919]
[1720598050857,1.079,3102.6,3102.4,2.80430053]
[1720598051072,1.079,3102.6,3102.2,1.21315241]
[1720598051370,1.079,3102.6,3102.3,2.80431257]
[1720598051569,1.079,3102.6,3102.2,1.21315241]
[1720598051570,1.079,3102.4,3102.2,0.53674322]
[1720598051756,1.079,3102.4,3102.3,2.80438058]
[1720598051957,1.079,3102.4,3102.3,3.20613388]
[1720598052569,1.079,3102.4,3102.3,1.52350553]
[1720598053357,1.079,3102.4,3102.3,3.20614761]
[1720598053659,1.079,3102.4,3102.3,1.12175223]
[1720598053860,1.079,3102.4,3102.2,0.53674322]
[1720598054201,1.079,3102.4,3102.3,1.12176465]
[1720598054360,1.079,3102.4,3102.3,1.12176514]
[1720598054561,1.079,3102.4,3102.3,1.3552602]
[1720598055107,1.079,3102.4,3102.3,3.03789853]
[1720598057386,1.079,3102.4,3102.3,3.03788648]
[1720598058065,0.48060227,3102.9,3102.3,3.03788648]
[1720598058278,1.079,3102.6,3102.4,1.12175401]
[1720598058486,1.079,3102.6,3102.4,0.25685387]
[1720598058667,1.079,3102.6,3102.2,1.21328965]
[1720598058869,1.079,3102.6,3102.3,2.80433552]
[1720598059091,1.079,3102.6,3102.4,2.80433552]
[1720598059303,1.079,3102.6,3102.2,1.21328965]
[1720598059513,1.079,3102.6,3102.3,3.02713161]
[1720598059800,1.079,3102.6,3102.4,1.12172827]
[1720598060113,1.079,3102.6,3102.3,0.22281093]
[1720598060312,1.079,3102.6,3102.4,2.804317]
[1720598060471,1.079,3102.6,3102.5,1.1217093]
[1720598060672,1.079,3102.6,3102.4,0.29361006]
[1720598061493,1.079,3102.6,3102.5,2.80425654]
[1720598063569,0.48590205,3103.0,3102.5,5.30861106]
[1720598063767,0.16280205,3103.0,3102.6,1.12170773]
[1720598063989,1.079,3102.9,3102.7,0.35616077]
[1720598066844,1.079,3102.9,3102.7,0.42060851]
[1720598067005,1.079,3102.9,3102.8,2.80405003]
[1720598067209,1.079,3102.9,3102.8,3.25861786]
[1720598067445,1.079,3102.9,3102.8,0.3901205]
[1720598067745,1.079,3102.9,3102.8,2.80397337]
[1720598067947,1.079,3102.9,3102.8,1.12158935]
[1720598068111,1.079,3102.9,3102.8,2.80395441]
[1720598070413,1.079,3102.9,3102.7,0.35616077]
[1720598070748,1.079,3102.9,3102.5,0.67654643]
[1720598070938,1.079,3102.9,3102.6,2.80418066]
[1720598071137,1.079,3102.9,3102.7,1.12167226]
[1720598071340,1.079,3102.8,3102.4,0.97015649]
[1720598071526,1.079,3102.6,3102.5,2.80429758]
[1720598072244,1.079,3102.6,3102.5,3.85828942]
[1720598072447,3.3231,3102.9,3102.5,0.37744541]
[1720598072624,4.079,3102.9,3102.6,5.93959381]
[1720598072822,4.079,3102.9,3102.7,2.80421073]
[1720598072823,1.079,3102.9,3102.7,2.80421073]
[1720598073038,1.079,3102.9,3102.8,1.46978146]
[1720598073338,1.079,3102.9,3102.8,1.12165692]
[1720598073537,1.079,3102.9,3102.8,2.80408908]
[1720598073742,1.079,3102.9,3102.5,0.67703465]
[1720598073957,1.079,3102.9,3102.6,3.00280068]
[1720598074143,1.079,3102.9,3102.7,1.1216724]
[1720598074327,1.079,3102.9,3102.6,0.19861967]
[1720598074654,1.079,3102.9,3102.7,2.80418758]
[1720598074969,1.079,3102.9,3102.6,0.67706114]
[1720598075164,1.079,3102.9,3102.7,2.80413131]
[1720598075370,1.079,3102.9,3102.8,1.12164941]
[1720598075557,1.079,3102.9,3102.8,1.30152047]
[1720598076536,1.079,3102.9,3102.8,2.98395331]
[1720598077697,1.079,3102.9,3102.8,0.17987106]
[1720598077831,1.079,3102.9,3102.8,2.80405098]
[1720598080688,1.079,3102.9,3102.8,2.86850101]
[1720598080894,1.079,3102.9,3102.8,2.80405098]
[1720598081068,1.079,3102.9,3102.8,2.80400481]
[1720598081569,1.5848023,3102.9,3102.8,2.80400481]
[1720598081769,1.5848023,3102.9,3102.8,3.25367058]
[1720598083603,0.5058023,3102.9,3102.8,3.31811948]
[1720598083774,0.5058023,3102.9,3102.8,6.57677234]
[1720598084472,0.5058023,3102.9,3102.8,5.45514572]
[1720598084672,0.5058023,3102.9,3102.8,6.5766696]
[1720598084874,0.5058023,3102.9,3102.8,0.51411467]
[1720598085099,0.5058023,3102.9,3102.8,6.57662572]
[1720598085332,0.5058023,3102.9,3102.8,3.31791037]
[1720598085512,0.5058023,3102.9,3102.8,4.81791037]
[1720598086089,0.5058023,3102.9,3102.8,3.25346147]
[1720598087124,0.5058023,3102.9,3102.8,4.75346147]
[1720598087292,0.5058023,3102.9,3102.8,3.25346147]
[1720598087619,0.5058023,3102.9,3102.8,8.01217054]
[1720598087976,0.5058023,3102.9,3102.8,8.01189622]
[1720598088211,0.5058023,3102.9,3102.8,4.753435]
[1720598088408,0.5058023,3102.9,3102.8,8.01185894]
[1720598088889,0.5058023,3102.9,3102.8,8.56185894]
[1720598089075,0.5058023,3102.9,3102.8,10.06185894]
[1720598091892,1.24234571,3103.3,3103.0,1.5]
[1720598091893,1.079,3103.3,3103.0,1.5]
[1720598092088,1.079,3103.5,3103.2,1.5]
[1720598092308,1.58474273,3103.5,3103.3,1.61955356]
[1720598092491,1.58474273,3103.5,3103.3,0.49804587]
[1720598092709,1.58474273,3103.5,3103.2,1.564438]
[1720598092710,1.58474273,3103.5,3103.2,0.064438]
[1720598093106,1.58474273,3103.5,3103.3,1.12142953]
[1720598093107,0.50574273,3103.5,3103.3,1.12142953]
[1720598093309,1.079,3103.4,3103.2,0.064438]
[1720598093512,1.079,3103.4,3103.3,2.80350725]
[1720598093682,1.079,3103.4,3103.3,3.15796034]
[1720598094627,1.079,3103.4,3103.3,3.15794805]
[1720598094835,1.079,3103.4,3103.3,0.35445309]
[1720598095014,1.079,3103.4,3103.3,2.80349033]
[1720598095195,1.079,3103.4,3103.3,1.12139613]
[1720598095524,1.079,3103.4,3103.3,1.12140095]
[1720598097094,0.50574273,3103.5,3103.3,1.12140095]
[1720598097316,0.50574273,3103.5,3103.4,0.06443619]
[1720598097491,0.50574273,3103.5,3103.2,0.43209548]
[1720598097820,1.079,3103.4,3103.3,1.12138551]
[1720598097984,1.079,3103.4,3103.3,1.34439215]
[1720598098318,1.079,3103.4,3103.3,1.34438347]
[1720598098731,1.079,3103.4,3103.3,0.22300664]
[1720598098888,1.079,3103.4,3103.0,0.67614515]
[1720598099089,1.079,3103.4,3103.1,3.35355955]
[1720598099321,1.079,3103.4,3103.2,1.12142382]
[1720598099628,1.079,3103.4,3103.1,0.55]
[1720598099931,0.82884273,3103.5,3103.2,1.12143731]
[1720598100100,1.079,3103.2,3102.9,0.67614515]
[1720598100291,1.079,3103.2,3103.0,2.80363918]
[1720598100485,1.079,3103.2,3103.1,1.12145567]
[1720598100888,1.079,3103.2,3102.9,1.33912253]
[1720598100889,3.4251,3103.2,3102.9,1.33912253]
[1720598101232,3.0,3103.1,3103.0,3.13261294]
[1720598101439,4.079,3103.1,3103.0,2.80373411]
[1720598101784,3.0,3103.1,3103.0,3.35373411]
[1720598102017,1.079,3103.2,3103.0,3.35672204]
[1720598102205,1.079,3103.2,3103.1,1.12149364]
[1720598102521,1.079,3103.2,3103.1,0.23506267]
[1720598102736,1.079,3103.2,3102.9,0.67614515]
[1720598103032,1.079,3103.2,3103.0,2.80374056]
[1720598103190,1.079,3103.2,3102.9,0.67614515]
[1720598103392,1.079,3103.2,3103.0,2.80374888]
[1720598103630,1.079,3103.2,3103.1,1.12149955]
[1720598103782,1.079,3103.2,3103.1,1.30126402]
[1720598104216,1.079,3103.2,3103.1,1.30125563]
[1720598104626,1.079,3103.2,3103.1,1.86198957]
[1720598104790,1.079,3103.2,3103.1,2.98347297]
[1720598105121,1.079,3103.2,3103.1,1.30124787]
[1720598105330,1.079,3103.2,3103.1,1.30126565]
[1720598107102,1.079,3103.2,3103.1,2.98348991]
[1720598107390,1.079,3103.4,3103.1,2.98348991]
[1720598107737,1.079,3103.4,3103.2,3.16961574]
[1720598107937,1.079,3103.4,3103.2,0.36597783]
[1720598108143,1.079,3103.4,3103.1,0.17976447]
[1720598108343,1.079,3103.4,3103.2,2.8036241]
[1720598108550,1.079,3103.4,3103.1,0.17976447]
[1720598108720,1.079,3103.4,3103.2,2.80362493]
[1720598108920,1.079,3103.4,3103.3,1.12144997]
[1720598109131,1.079,3103.4,3103.1,0.17976447]
[1720598109324,1.079,3103.4,3103.2,1.12147255]
[1720598109521,1.079,3103.4,3103.2,0.1977641]
[1720598109745,1.079,3103.4,3103.1,0.17976447]
[1720598109925,1.079,3103.4,3103.2,2.80364283]
[1720598110245,1.079,3103.4,3103.1,0.17976447]
[1720598110447,1.079,3103.2,3103.1,0.17976447]
[1720598110616,1.079,3103.2,3103.1,1.12149725]
[1720598110955,1.079,3103.2,3103.1,1.12149844]
[1720598111245,3.4653,3103.2,3102.7,0.67640394]
[1720598111455,3.0,3103.1,3102.8,1.68235735]
[1720598111640,1.079,3102.9,3102.7,0.67640394]
[1720598111942,1.079,3102.9,3102.8,1.68236522]
[1720598113850,1.079,3102.9,3102.3,1.69130842]
[1720598113851,3.5257,3102.9,3102.3,0.67640394]
[1720598114019,1.079,3102.4,3102.1,0.67640394]
[1720598114216,1.079,3102.2,3102.0,0.67640394]
[1720598114429,1.079,3102.2,3102.1,0.16910099]
[1720598114744,1.079,3102.2,3101.9,0.67662748]